[Event "NJSK 2018 Meisjes C"]
[Site "Assen, Netherlands"]
[Date "2018.05.01"]
[Round "3.1"]
[White "De Zoeten, Cato"]
[Black "Huang, Wendy"]
[Result "0-1"]
[TimeControl "40/90m+30m+30sec/move"]
[WhiteElo "1496"]
[BlackElo "1572"]

1. e4 {[%clk 01:30:56]} {[%emt 00:00:04]} e5 {[%clk 01:30:52]} {[%emt
00:00:08]} 2. f4 {[%clk 01:30:58]} {[%emt 00:00:29]} exf4 {[%clk 01:31:10]}
{[%emt 00:00:11]} 3. Nf3 {[%clk 01:31:02]} {[%emt 00:00:26]} Be7 {[%clk
01:31:15]} {[%emt 00:00:26]} 4. Bc4 {[%clk 01:28:26]} {[%emt 00:03:05]} Bh4+
{[%clk 01:29:01]} {[%emt 00:02:45]} 5. Kf1 {[%clk 01:23:36]} {[%emt 00:05:20]}
d6 {[%clk 01:24:02]} {[%emt 00:05:29]} 6. d4 {[%clk 01:18:08]} {[%emt
00:05:57]} Bg4 {[%clk 01:20:14]} {[%emt 00:04:18]} 7. Bxf4 {[%clk 01:09:40]}
{[%emt 00:08:58]} Qf6 {[%clk 01:16:03]} {[%emt 00:04:42]} 8. Be3 {[%clk
00:54:08]} {[%emt 00:16:01]} Nc6 {[%clk 01:05:25]} {[%emt 00:11:09]} 9. Nc3
{[%clk 00:46:12]} {[%emt 00:08:26]} Nge7 {[%clk 00:54:45]} {[%emt 00:11:09]} 10.
Nb5 {[%clk 00:34:55]} {[%emt 00:11:46]} Rc8 {[%clk 00:47:58]} {[%emt 00:07:18]}
11. h3 {[%clk 00:32:43]} {[%emt 00:02:42]} Bxf3 {[%clk 00:45:15]} {[%emt
00:03:13]} 12. Qxf3 {[%clk 00:31:37]} {[%emt 00:01:37]} a6 {[%clk 00:43:33]}
{[%emt 00:02:13]} 13. Nc3 {[%clk 00:28:33]} {[%emt 00:03:34]} O-O {[%clk
00:38:50]} {[%emt 00:05:12]} 14. Ne2 {[%clk 00:25:16]} {[%emt 00:03:46]} Ng6
{[%clk 00:37:06]} {[%emt 00:02:14]} 15. Qxf6 {[%emt 00:03:20]} Bxf6 {[%clk
00:37:16]} {[%emt 00:00:18]} 16. g4 {[%clk 00:22:27]} {[%emt 00:00:32]} Rfe8
{[%clk 00:34:59]} {[%emt 00:02:48]} 17. Bd5 {[%clk 00:17:38]} {[%emt 00:05:18]}
Nb4 {[%clk 00:30:48]} {[%emt 00:04:41]} 18. Bf2 {[%clk 00:15:15]} {[%emt
00:02:52]} Nxd5 {[%clk 00:24:45]} {[%emt 00:06:34]} 19. exd5 {[%clk 00:15:39]}
{[%emt 00:00:06]} Bh4 {[%clk 00:19:34]} {[%emt 00:05:41]} 20. Bxh4 {[%clk
00:11:04]} {[%emt 00:05:05]} Nxh4 {[%clk 00:19:56]} {[%emt 00:00:07]} 21. Kf2
{[%clk 00:10:17]} {[%emt 00:01:17]} Re4 {[%clk 00:19:01]} {[%emt 00:01:25]} 22.
Rae1 {[%clk 00:09:12]} {[%emt 00:01:34]} Rce8 {[%clk 00:18:53]} {[%emt
00:00:37]} 23. Nc3 {[%clk 00:08:25]} {[%emt 00:01:18]} Rxe1 {[%clk 00:18:58]}
{[%emt 00:00:25]} 24. Rxe1 {[%clk 00:08:50]} {[%emt 00:00:05]} Rxe1 {[%clk
00:19:21]} {[%emt 00:00:06]} 25. Kxe1 {[%clk 00:09:10]} {[%emt 00:00:09]} Nf3+
{[%clk 00:19:36]} {[%emt 00:00:15]} 26. Ke2 {[%clk 00:09:07]} {[%emt 00:00:22]}
Nxd4+ {[%clk 00:19:54]} {[%emt 00:00:24]} 27. Kd3 {[%clk 00:09:24]} {[%emt
00:00:09]} Nf3 {[%clk 00:18:51]} {[%emt 00:01:38]} 28. Ke3 {[%clk 00:07:52]}
{[%emt 00:02:00]} Ne5 {[%clk 00:18:27]} {[%emt 00:00:56]} 29. b3 {[%clk
00:07:38]} {[%emt 00:00:43]} Kf8 {[%clk 00:17:22]} {[%emt 00:01:35]} 30. Ne4
{[%clk 00:07:40]} {[%emt 00:00:25]} Ke7 {[%clk 00:17:17]} {[%emt 00:00:37]} 31.
c4 {[%clk 00:07:03]} {[%emt 00:01:07]} h6 {[%clk 00:16:55]} {[%emt 00:00:53]}
32. Kd4 {[%clk 00:05:48]} {[%emt 00:01:36]} Nf3+ {[%clk 00:16:32]} {[%emt
00:01:02]} 33. Ke3 {[%clk 00:05:52]} {[%emt 00:00:24]} Ng5 {[%clk 00:16:29]}
{[%emt 00:00:35]} 34. Nf2 {[%clk 00:05:45]} {[%emt 00:00:30]} g6 {[%clk
00:15:17]} {[%emt 00:01:49]} 35. h4 {[%clk 00:04:24]} {[%emt 00:01:50]} Nh7
{[%clk 00:15:37]} {[%emt 00:00:11]} 36. b4 {[%clk 00:03:43]} {[%emt 00:01:12]}
Nf6 {[%clk 00:15:32]} {[%emt 00:00:34]} 37. g5 {[%clk 00:03:11]} {[%emt
00:01:01]} hxg5 {[%clk 00:15:24]} {[%emt 00:00:39]} 38. hxg5 {[%clk 00:03:35]}
{[%emt 00:00:07]} Nd7 {[%clk 00:15:32]} {[%emt 00:00:21]} 39. Nd3 {[%clk
00:03:11]} {[%emt 00:00:54]} Ne5 {[%clk 00:15:08]} {[%emt 00:00:53]} 40. Nb2
{[%clk 00:00:38]} {[%emt 00:03:03]} f6 {[%clk 00:14:39]} {[%emt 00:00:59]} 41.
gxf6+ {[%clk 00:30:08]} {[%emt 00:01:01]} Kxf6 {[%clk 00:45:02]} {[%emt
00:00:07]} 42. c5 {[%clk 00:27:45]} {[%emt 00:02:53]} g5 {[%clk 00:43:50]}
{[%emt 00:01:42]} 43. a4 {[%clk 00:24:39]} {[%emt 00:03:37]} dxc5 {[%clk
00:39:14]} {[%emt 00:05:05]} 44. bxc5 {[%clk 00:24:37]} {[%emt 00:00:31]} Nd7
{[%clk 00:39:21]} {[%emt 00:00:24]} 45. Kd4 {[%clk 00:22:28]} {[%emt 00:02:39]}
g4 {[%clk 00:39:03]} {[%emt 00:00:48]} 46. Nd3 {[%clk 00:20:15]} {[%emt
00:02:42]} g3 {[%clk 00:39:22]} {[%emt 00:00:11]} 47. Nf4 {[%clk 00:19:23]}
{[%emt 00:01:18]} Kf5 {[%clk 00:39:25]} {[%emt 00:00:31]} 48. Ng2 {[%clk
00:17:43]} {[%emt 00:02:10]} c6 {[%clk 00:35:52]} {[%emt 00:04:03]} 49. Kc4
{[%clk 00:11:50]} {[%emt 00:06:23]} a5 {[%clk 00:35:37]} {[%emt 00:00:45]} 50.
Kd4 {[%clk 00:11:16]} {[%emt 00:01:05]} Kg4 {[%clk 00:34:58]} {[%emt 00:01:09]}
51. Kc4 {[%clk 00:05:57]} {[%emt 00:05:49]} Kf3 {[%clk 00:35:07]} {[%emt
00:00:20]} 52. Nh4+ {[%clk 00:05:34]} {[%emt 00:00:53]} Ke3 {[%emt 00:00:56]}
0-1

[Event "NJSK 2018 Meisjes C"]
[Site "Assen, Netherlands"]
[Date "2018.05.01"]
[Round "3.2"]
[White "Morote, Luna"]
[Black "Raulji, Kavya"]
[Result "0-1"]
[TimeControl "40/90m+30m+30sec/move"]
[WhiteElo "1415"]
[BlackElo "1394"]

1. e4 {[%clk 01:30:57]} {[%emt 00:00:03]} c5 {[%clk 01:30:57]} {[%emt
00:00:03]} 2. Nf3 {[%clk 01:31:21]} {[%emt 00:00:05]} d6 {[%clk 01:31:23]}
{[%emt 00:00:05]} 3. d4 {[%clk 01:31:48]} {[%emt 00:00:03]} cxd4 {[%clk
01:31:49]} {[%emt 00:00:04]} 4. Nxd4 {[%clk 01:32:14]} {[%emt 00:00:04]} Nf6
{[%clk 01:32:13]} {[%emt 00:00:05]} 5. Nc3 {[%clk 01:32:39]} {[%emt 00:00:05]}
a6 {[%clk 01:32:41]} {[%emt 00:00:02]} 6. h3 {[%clk 01:32:59]} {[%emt
00:00:10]} e5 {[%clk 01:33:05]} {[%emt 00:00:06]} 7. Nde2 {[%clk 01:33:24]}
{[%emt 00:00:06]} h5 {[%clk 01:31:33]} {[%emt 00:02:02]} 8. g3 {[%clk
01:32:47]} {[%emt 00:01:06]} Be7 {[%clk 01:29:50]} {[%emt 00:02:14]} 9. Bg2
{[%clk 01:32:30]} {[%emt 00:00:45]} Be6 {[%clk 01:29:32]} {[%emt 00:00:49]} 10.
Be3 {[%clk 01:31:54]} {[%emt 00:01:06]} Nbd7 {[%clk 01:28:59]} {[%emt
00:01:03]} 11. Qd2 {[%clk 01:29:33]} {[%emt 00:02:50]} O-O {[%clk 01:18:29]}
{[%emt 00:11:01]} 12. O-O-O {[%clk 01:28:51]} {[%emt 00:01:12]} b5 {[%clk
01:16:35]} {[%emt 00:02:24]} 13. f4 {[%clk 01:27:15]} {[%emt 00:02:07]} b4
{[%clk 01:08:45]} {[%emt 00:08:20]} 14. Nd5 {[%clk 01:20:17]} {[%emt 00:07:29]}
Bxd5 {[%clk 01:08:39]} {[%emt 00:00:35]} 15. exd5 {[%clk 01:20:16]} {[%emt
00:00:31]} a5 {[%clk 01:07:00]} {[%emt 00:02:09]} 16. Rh2 {[%clk 01:14:05]}
{[%emt 00:06:40]} Qc7 {[%clk 01:01:00]} {[%emt 00:06:45]} 17. Rdh1 {[%clk
01:11:40]} {[%emt 00:02:40]} Rfc8 {[%clk 00:56:10]} {[%emt 00:05:21]} 18. g4
{[%clk 01:08:50]} {[%emt 00:03:19]} h4 {[%clk 00:51:28]} {[%emt 00:05:13]} 19.
Rf1 {[%clk 00:58:15]} {[%emt 00:11:05]} a4 {[%clk 00:47:29]} {[%emt 00:04:29]}
20. Bh1 {[%clk 00:54:57]} {[%emt 00:03:48]} b3 {[%clk 00:44:28]} {[%emt
00:03:31]} 21. Nc3 {[%clk 00:53:43]} {[%emt 00:01:44]} Qc4 {[%clk 00:33:21]}
{[%emt 00:11:37]} 22. Qd3 {[%clk 00:48:04]} {[%emt 00:06:09]} Qxd3 {[%clk
00:30:50]} {[%emt 00:03:01]} 23. cxd3 {[%clk 00:48:14]} {[%emt 00:00:20]} a3
{[%clk 00:29:24]} {[%emt 00:01:56]} 24. Kb1 {[%clk 00:46:11]} {[%emt 00:02:33]}
bxa2+ {[%clk 00:26:44]} {[%emt 00:03:10]} 25. Kxa2 {[%clk 00:45:59]} {[%emt
00:00:42]} axb2+ {[%clk 00:26:39]} {[%emt 00:00:35]} 26. Kxb2 {[%clk 00:46:12]}
{[%emt 00:00:18]} Rcb8+ {[%clk 00:26:41]} {[%emt 00:00:27]} 27. Kc2 {[%clk
00:46:09]} {[%emt 00:00:33]} Rc8 {[%clk 00:25:53]} {[%emt 00:01:19]} 28. Rb1
{[%clk 00:44:54]} {[%emt 00:01:45]} exf4 {[%clk 00:22:34]} {[%emt 00:03:48]} 29.
Bxf4 {[%clk 00:43:36]} {[%emt 00:01:48]} Ra6 {[%clk 00:19:21]} {[%emt
00:03:44]} 30. Re2 {[%clk 00:42:00]} {[%emt 00:02:05]} Kf8 {[%clk 00:19:15]}
{[%emt 00:00:37]} 31. Bg5 {[%clk 00:41:28]} {[%emt 00:01:02]} Ne5 {[%clk
00:18:14]} {[%emt 00:01:31]} 32. Bxh4 {[%clk 00:39:59]} {[%emt 00:01:59]} Ra3
{[%clk 00:17:26]} {[%emt 00:01:17]} 33. Be1 {[%clk 00:38:31]} {[%emt 00:01:58]}
Bd8 {[%clk 00:17:12]} {[%emt 00:00:45]} 34. Kb2 {[%clk 00:36:19]} {[%emt
00:02:41]} Ra7 {[%clk 00:15:45]} {[%emt 00:01:58]} 35. Be4 {[%clk 00:30:54]}
{[%emt 00:05:55]} Nxe4 {[%clk 00:13:22]} {[%emt 00:02:52]} 36. dxe4 {[%clk
00:31:08]} {[%emt 00:00:16]} Bf6 {[%clk 00:13:05]} {[%emt 00:00:48]} 37. Kc2
{[%clk 00:27:54]} {[%emt 00:03:45]} Nf3 {[%clk 00:12:27]} {[%emt 00:01:08]} 38.
Re3 {[%clk 00:26:48]} {[%emt 00:01:36]} Nxe1+ {[%clk 00:10:48]} {[%emt
00:02:08]} 39. Rbxe1 {[%clk 00:25:58]} {[%emt 00:01:21]} Rac7 {[%clk 00:11:00]}
{[%emt 00:00:19]} 40. Kd1 {[%clk 00:21:26]} {[%emt 00:05:01]} Rxc3 {[%clk
00:10:28]} {[%emt 00:01:02]} 41. Rxc3 {[%clk 00:20:48]} {[%emt 00:01:08]} Rxc3
{[%clk 00:09:22]} {[%emt 00:01:36]} 0-1

[Event "NJSK 2018 Meisjes C"]
[Site "Assen, Netherlands"]
[Date "2018.05.01"]
[Round "3.3"]
[White "Basa, Manasvita"]
[Black "Martinez, Sara"]
[Result "1-0"]
[TimeControl "40/90m+30m+30sec/move"]
[WhiteElo "1402"]
[BlackElo "1446"]

1. e4 {[%clk 01:30:59]} {[%emt 00:00:01]} e6 {[%clk 01:30:55]} {[%emt
00:00:05]} 2. d4 {[%clk 01:31:24]} {[%emt 00:00:05]} d5 {[%clk 01:31:21]}
{[%emt 00:00:04]} 3. e5 {[%clk 01:31:48]} {[%emt 00:00:06]} c5 {[%clk
01:31:47]} {[%emt 00:00:04]} 4. c3 {[%clk 01:32:13]} {[%emt 00:00:05]} Nc6
{[%clk 01:32:13]} {[%emt 00:00:05]} 5. Nf3 {[%clk 01:32:37]} {[%emt 00:00:05]}
Bd7 {[%clk 01:32:38]} {[%emt 00:00:05]} 6. Be2 {[%clk 01:29:57]} {[%emt
00:03:10]} f6 {[%clk 01:32:53]} {[%emt 00:00:16]} 7. O-O {[%clk 01:28:18]}
{[%emt 00:02:09]} Qc7 {[%clk 01:32:51]} {[%emt 00:00:32]} 8. Bf4 {[%clk
01:27:13]} {[%emt 00:01:35]} O-O-O {[%clk 01:33:02]} {[%emt 00:00:19]} 9. Bg3
{[%clk 01:26:21]} {[%emt 00:01:22]} f5 {[%clk 01:32:21]} {[%emt 00:01:12]} 10.
Ng5 {[%clk 01:26:29]} {[%emt 00:00:22]} Nh6 {[%clk 01:31:52]} {[%emt 00:01:00]}
11. Na3 {[%clk 01:23:58]} {[%emt 00:03:00]} a6 {[%clk 01:31:23]} {[%emt
00:00:58]} 12. Nc2 {[%clk 01:22:11]} {[%emt 00:02:17]} Be7 {[%clk 01:30:17]}
{[%emt 00:01:36]} 13. Bf4 {[%clk 01:22:08]} {[%emt 00:00:33]} Rdf8 {[%clk
01:28:00]} {[%emt 00:02:46]} 14. Rb1 {[%clk 01:20:12]} {[%emt 00:02:27]} Nf7
{[%clk 01:23:40]} {[%emt 00:04:50]} 15. Nxf7 {[%clk 01:16:57]} {[%emt
00:03:45]} Rxf7 {[%clk 01:24:04]} {[%emt 00:00:07]} 16. Qd2 {[%clk 01:13:56]}
{[%emt 00:03:31]} Qd8 {[%clk 01:23:13]} {[%emt 00:01:20]} 17. Be3 {[%clk
01:13:58]} {[%emt 00:00:28]} c4 {[%clk 01:17:45]} {[%emt 00:05:58]} 18. b3
{[%clk 01:13:51]} {[%emt 00:00:37]} g5 {[%clk 01:15:07]} {[%emt 00:03:09]} 19.
f4 {[%clk 01:14:05]} {[%emt 00:00:16]} gxf4 {[%clk 01:04:10]} {[%emt 00:11:35]}
20. Bxf4 {[%clk 01:14:25]} {[%emt 00:00:06]} cxb3 {[%clk 01:02:52]} {[%emt
00:01:44]} 21. Rxb3 {[%clk 01:14:42]} {[%emt 00:00:13]} Na5 {[%clk 01:02:29]}
{[%emt 00:00:53]} 22. Rbb1 {[%clk 01:06:46]} {[%emt 00:08:26]} Rg7 {[%clk
00:54:01]} {[%emt 00:08:59]} 23. Ne3 {[%clk 01:01:06]} {[%emt 00:06:09]} Qc7
{[%clk 00:46:47]} {[%emt 00:07:44]} 24. c4 {[%clk 00:59:48]} {[%emt 00:01:48]}
Bc6 {[%clk 00:44:43]} {[%emt 00:02:33]} 25. cxd5 {[%clk 00:59:15]} {[%emt
00:01:03]} Bxd5 {[%clk 00:37:39]} {[%emt 00:07:35]} 26. Nxd5 {[%clk 00:59:16]}
{[%emt 00:00:29]} exd5 {[%clk 00:38:00]} {[%emt 00:00:08]} 27. e6 {[%clk
00:58:41]} {[%emt 00:01:06]} Qd8 {[%clk 00:29:21]} {[%emt 00:09:09]} 28. Be5
{[%clk 00:57:56]} {[%emt 00:01:14]} Bf6 {[%clk 00:28:49]} {[%emt 00:01:03]} 29.
Bxf6 {[%clk 00:57:49]} {[%emt 00:00:37]} Qxf6 {[%clk 00:29:13]} {[%emt
00:00:06]} 30. Qxa5 {[%clk 00:58:10]} {[%emt 00:00:09]} Qxd4+ {[%clk 00:29:37]}
{[%emt 00:00:06]} 31. Kh1 {[%clk 00:57:58]} {[%emt 00:00:42]} Qe4 {[%clk
00:29:01]} {[%emt 00:01:06]} 32. Bf3 {[%clk 00:58:12]} {[%emt 00:00:16]} Qxe6
{[%clk 00:28:09]} {[%emt 00:01:22]} 33. Qc3+ {[%clk 00:58:29]} {[%emt
00:00:13]} Kd8 {[%clk 00:26:30]} {[%emt 00:02:09]} 34. Qxg7 {[%clk 00:58:47]}
{[%emt 00:00:12]} Rg8 {[%clk 00:26:50]} {[%emt 00:00:10]} 35. Qxb7 {[%clk
00:58:48]} {[%emt 00:00:29]} Qg6 {[%clk 00:26:21]} {[%emt 00:00:58]} 36. Qxd5+
{[%clk 00:57:35]} {[%emt 00:01:43]} Ke7 {[%clk 00:26:34]} {[%emt 00:00:17]} 37.
Rfe1+ {[%clk 00:57:30]} {[%emt 00:00:36]} Kf8 {[%clk 00:26:37]} {[%emt
00:00:26]} 38. Rb8+ {[%clk 00:57:40]} {[%emt 00:00:20]} 1-0

[Event "NJSK 2018 Meisjes C"]
[Site "Assen, Netherlands"]
[Date "2018.05.01"]
[Round "3.4"]
[White "Cordes, Jule"]
[Black "De Putter, Nina"]
[Result "0-1"]
[TimeControl "40/90m+30m+30sec/move"]
[WhiteElo "1551"]
[BlackElo "1672"]

1. d4 {[%clk 01:30:56]} {[%emt 00:00:03]} d5 {[%clk 01:30:51]} {[%emt
00:00:09]} 2. c4 {[%clk 01:31:19]} {[%emt 00:00:08]} c6 {[%clk 01:31:15]}
{[%emt 00:00:07]} 3. Nc3 {[%clk 01:31:38]} {[%emt 00:00:10]} dxc4 {[%clk
01:31:35]} {[%emt 00:00:11]} 4. a4 {[%clk 01:31:40]} {[%emt 00:00:28]} a6
{[%clk 01:31:31]} {[%emt 00:00:34]} 5. e3 {[%clk 01:31:40]} {[%emt 00:00:30]}
b5 {[%clk 01:31:48]} {[%emt 00:00:14]} 6. axb5 {[%clk 01:31:30]} {[%emt
00:00:40]} cxb5 {[%clk 01:24:27]} {[%emt 00:07:51]} 7. Nxb5 {[%clk 01:29:20]}
{[%emt 00:02:40]} Bb7 {[%clk 01:22:49]} {[%emt 00:02:07]} 8. Nc3 {[%clk
01:28:44]} {[%emt 00:01:05]} Nd7 {[%clk 01:20:36]} {[%emt 00:02:43]} 9. Nf3
{[%clk 01:27:35]} {[%emt 00:01:39]} Rc8 {[%clk 01:20:40]} {[%emt 00:00:27]} 10.
Be2 {[%clk 01:26:12]} {[%emt 00:01:53]} Ngf6 {[%clk 01:20:27]} {[%emt
00:00:41]} 11. O-O {[%clk 01:24:08]} {[%emt 00:02:34]} e6 {[%clk 01:19:04]}
{[%emt 00:01:54]} 12. Nd2 {[%clk 01:22:05]} {[%emt 00:02:33]} Nb6 {[%clk
01:17:53]} {[%emt 00:01:41]} 13. Bf3 {[%clk 01:20:39]} {[%emt 00:01:56]} Nfd5
{[%clk 01:10:28]} {[%emt 00:07:55]} 14. Nxd5 {[%clk 01:19:54]} {[%emt
00:01:14]} Nxd5 {[%clk 01:06:28]} {[%emt 00:04:30]} 15. Qe2 {[%clk 01:02:23]}
{[%emt 00:18:01]} c3 {[%clk 01:04:35]} {[%emt 00:02:24]} 16. bxc3 {[%clk
01:01:52]} {[%emt 00:01:01]} Nxc3 {[%clk 00:54:55]} {[%emt 00:10:08]} 17. Qd3
{[%clk 00:59:24]} {[%emt 00:02:58]} Nd5 {[%clk 00:47:36]} {[%emt 00:07:50]} 18.
Bb2 {[%clk 00:49:57]} {[%emt 00:09:57]} Bd6 {[%clk 00:43:51]} {[%emt 00:04:14]}
19. Rfc1 {[%clk 00:43:50]} {[%emt 00:06:38]} Qh4 {[%clk 00:42:10]} {[%emt
00:02:11]} 20. Rxc8+ {[%clk 00:41:17]} Bxc8 {[%clk 00:42:31]} {[%emt 00:03:13]}
21. Nf1 {[%clk 00:36:58]} {[%emt 00:04:48]} Bb7 {[%clk 00:33:24]} {[%emt
00:09:36]} 22. Bxd5 {[%clk 00:33:22]} {[%emt 00:04:06]} exd5 {[%clk 00:30:53]}
{[%emt 00:03:02]} 23. Qb3 {[%clk 00:30:06]} {[%emt 00:03:43]} Qe7 {[%clk
00:29:01]} {[%emt 00:02:25]} 24. Ng3 {[%clk 00:25:36]} {[%emt 00:05:00]} g6
{[%clk 00:27:44]} {[%emt 00:01:46]} 25. Qa4+ {[%clk 00:22:11]} {[%emt
00:03:55]} Kf8 {[%clk 00:21:24]} {[%emt 00:06:50]} 26. Qd1 {[%clk 00:17:51]}
{[%emt 00:04:43]} h5 {[%clk 00:20:42]} {[%emt 00:01:20]} 27. Nf1 {[%clk
00:16:16]} {[%emt 00:02:05]} h4 {[%clk 00:18:35]} {[%emt 00:02:37]} 28. f3
{[%clk 00:11:58]} {[%emt 00:04:48]} h3 {[%clk 00:18:04]} {[%emt 00:01:01]} 29.
g3 {[%clk 00:08:04]} {[%emt 00:04:24]} Rh5 {[%clk 00:15:10]} {[%emt 00:03:24]}
30. Qe1 {[%clk 00:07:32]} {[%emt 00:01:03]} Qf6 {[%clk 00:14:45]} {[%emt
00:00:55]} 31. Qf2 {[%clk 00:07:02]} {[%emt 00:00:59]} g5 {[%clk 00:11:55]}
{[%emt 00:03:21]} 32. g4 {[%clk 00:05:33]} {[%emt 00:01:59]} Rh4 {[%clk
00:11:52]} {[%emt 00:00:33]} 33. Ba3 {[%clk 00:05:47]} {[%emt 00:00:17]} Bc8
{[%clk 00:11:23]} {[%emt 00:00:58]} 34. Bxd6+ {[%clk 00:06:15]} {[%emt
00:00:02]} Qxd6 {[%clk 00:11:45]} {[%emt 00:00:08]} 35. Ng3 {[%clk 00:03:57]}
{[%emt 00:02:48]} Kg8 {[%clk 00:10:24]} {[%emt 00:01:51]} 36. Ra2 {[%clk
00:02:36]} {[%emt 00:01:51]} Qg6 {[%clk 00:08:46]} {[%emt 00:02:07]} 37. Ra1
{[%clk 00:02:42]} {[%emt 00:00:26]} Rh6 {[%clk 00:06:33]} {[%emt 00:02:41]} 38.
Rc1 {[%clk 00:02:51]} {[%emt 00:00:21]} Bd7 {[%clk 00:05:55]} {[%emt 00:01:09]}
39. Ra1 {[%clk 00:03:03]} {[%emt 00:00:18]} Qd3 {[%clk 00:03:45]} {[%emt
00:02:39]} 40. Re1 {[%clk 00:02:03]} {[%emt 00:01:27]} a5 {[%clk 00:03:43]}
{[%emt 00:00:35]} 41. Qa2 {[%clk 00:01:57]} {[%emt 00:00:29]} Qc3 {[%clk
00:01:08]} {[%emt 00:03:12]} 42. Qb1 {[%clk 00:01:35]} {[%emt 00:00:48]} Qb4
{[%clk 00:00:44]} {[%emt 00:00:58]} 43. Ne2 {[%clk 00:00:44]} {[%emt 00:01:21]}
Rb6 {[%clk 00:00:38]} {[%emt 00:00:36]} 44. Qa1 {[%clk 00:30:07]} {[%emt
00:01:06]} Qd2 {[%clk 00:29:47]} {[%emt 00:01:22]} 45. Qc1 {[%clk 00:27:42]}
{[%emt 00:02:54]} Rb2 {[%clk 00:25:38]} {[%emt 00:04:41]} 46. Qxd2 {[%clk
00:24:27]} {[%emt 00:03:44]} Rxd2 {[%clk 00:25:55]} {[%emt 00:00:12]} 47. Nc3
{[%clk 00:24:27]} {[%emt 00:00:31]} Bc6 {[%clk 00:25:17]} {[%emt 00:01:08]} 48.
Ra1 {[%clk 00:21:38]} {[%emt 00:03:20]} Rd3 {[%clk 00:22:06]} {[%emt 00:03:41]}
49. Nd1 {[%clk 00:19:11]} {[%emt 00:02:58]} Rd2 {[%clk 00:18:21]} {[%emt
00:04:14]} 50. Nc3 {[%clk 00:19:11]} {[%emt 00:00:28]} Rg2+ {[%clk 00:18:12]}
{[%emt 00:00:41]} 51. Kh1 {[%clk 00:19:18]} {[%emt 00:00:23]} Rc2 {[%clk
00:18:26]} {[%emt 00:00:16]} 52. Nd1 {[%clk 00:18:33]} {[%emt 00:01:15]} a4
{[%clk 00:18:29]} {[%emt 00:00:28]} 53. Ra3 {[%clk 00:17:50]} {[%emt 00:01:12]}
Rc1 {[%clk 00:18:42]} {[%emt 00:00:16]} 54. Rd3 {[%clk 00:18:10]} {[%emt
00:00:11]} a3 {[%clk 00:18:39]} {[%emt 00:00:33]} 55. Kg1 {[%clk 00:17:05]}
{[%emt 00:01:34]} a2 {[%clk 00:18:54]} {[%emt 00:00:16]} 56. Ra3 {[%clk
00:17:15]} {[%emt 00:00:20]} a1=Q {[%emt 00:00:24]} 57. Rxa1 {[%clk 00:17:37]}
{[%emt 00:00:06]} Rxa1 {[%clk 00:19:26]} {[%emt 00:00:04]} 58. Kf2 {[%clk
00:17:38]} {[%emt 00:00:29]} Rxd1 {[%clk 00:19:49]} {[%emt 00:00:08]} 59. Kg3
{[%clk 00:17:51]} {[%emt 00:00:12]} Rg1+ {[%clk 00:19:55]} {[%emt 00:00:28]} 60.
Kxh3 {[%clk 00:17:41]} {[%emt 00:00:39]} Bb5 {[%clk 00:20:12]} {[%emt
00:00:13]} 61. f4 {[%clk 00:17:48]} {[%emt 00:00:22]} Bf1 {[%clk 00:20:36]}
{[%emt 00:00:07]} 0-1